[Event "Kupreichik Memorial Open 2018"]
[Site "Minsk"]
[Date "2018.06.21"]
[Round "3"]
[White "Tarasenka, Aliaksandra"]
[Black "Shaban, Alena"]
[Result "0-1"]
[ECO "D35"]
[WhiteElo "1682"]
[BlackElo "2027"]
[Annotator "NA"]
[PlyCount "150"]
[EventDate "2018.06.21"]
[EventCountry "BLR"]
[SourceTitle "playchess.com"]
[Source "ChessBase"]
[SourceQuality "1"]
[TimeControl "900+10"]

1. c4 {[%emt 0:00:00]} e6 {[%emt 0:00:06]} 2. Nc3 {[%emt 0:00:00]} Nf6 {[%emt 0:00:02]} 3. d4 {[%emt 0:00:25]} d5 {[%emt 0:00:03]} 4. cxd5 {[%emt 0:00:11]} exd5 {[%emt 0:00:01]} 5. Bg5 {[%emt 0:00:05]} c6 {[%emt 0:00:11]} 6. e3 {[%emt 0:00:15]} Be7 {[%emt 0:01:28]} 7. Bd3 {[%emt 0:00:10]} O-O {[%emt 0:00:05]} 8. Nge2 {[%emt 0:00:08]} Ne4 {[%emt 0:01:10]} 9. Bf4 {[%emt 0:04:11]} f5 {[%emt 0:01:30]} 10. O-O {[%emt 0:00:46]} Nd7 {[%emt 0:00:52]} 11. f3 {[%emt 0:00:37]} Nxc3 {[%emt 0:00:18]} 12. Nxc3 {[%emt 0:02:02]} Nf6 {[%emt 0:02:05]} 13. Qc2 {[%emt 0:01:46]} Qd7 {[%emt 0:03:53]} 14. Rad1 {[%emt 0:00:46]} Qe6 {[%emt 0:00:16]} 15. Rfe1 {[%emt 0:00:20]} Nd7 {[%emt 0:00:36]} 16. Bg3 {[%emt 0:00:38]} Qf6 {[%emt 0:00:28]} 17. Bf2 {[%emt 0:00:46]} Bd6 {[%emt 0:00:32]} 18. h3 {[%emt 0:01:41]} Qh6 {[%emt 0:02:25]} 19. e4 {[%emt 0:02:53]} fxe4 {[%emt 0:00:24]} 20. fxe4 {[%emt 0:00:03]} Qh5 {[%emt 0:01:08]} 21. exd5 {[%emt 0:00:31]} cxd5 {[%emt 0:00:07]} 22. Nxd5 {[%emt 0:00:01]} Nf6 {[%emt 0:00:33]} 23. Ne3 {[%emt 0:00:23]} Bxh3 {[%emt 0:00:06]} 24. gxh3 {[%emt 0:00:09]} Qxh3 {[%emt 0:00:00]} 25. Ng2 {[%emt 0:00:04]} Bh2+ {[%emt 0:00:04]} 26. Kf1 {[%emt 0:00:02]} Ng4 {[%emt 0:00:04]} 27. Bf5 {[%emt 0:00:25]} Bg3 {[%emt 0:00:03]} 28. Bxg4 {[%emt 0:00:08]} Qxg4 {[%emt 0:00:04]} 29. Rd2 {[%emt 0:00:09]} Qh3 {[%emt 0:00:10]} 30. Qb3+ {[%emt 0:00:08]} Kh8 {[%emt 0:00:04]} 31. Re3 {[%emt 0:00:16]} Qh1+ {[%emt 0:00:14]} 32. Ke2 {[%emt 0:00:00]} Rxf2+ {[%emt 0:00:03]} 33. Kd3 {[%emt 0:00:03]} Rxd2+ {[%emt 0:00:03]} 34. Kxd2 {[%emt 0:00:02]} Qxg2+ {[%emt 0:00:04]} 35. Kd3 {[%emt 0:00:23]} Qf1+ {[%emt 0:00:06]} 36. Kc2 {[%emt 0:00:21]} Rc8+ {[%emt 0:00:06]} 37. Rc3 {[%emt 0:00:01]} Qe2+ {[%emt 0:00:03]} 38. Kb1 {[%emt 0:00:02]} Qe4+ {[%emt 0:00:10]} 39. Kc1 {[%emt 0:00:06]} Qe1+ {[%emt 0:00:10]} 40. Kc2 {[%emt 0:00:05]} Qe4+ {[%emt 0:00:02]} 41. Kc1 {[%emt 0:00:05]} Bf4+ {[%emt 0:00:01]} 42. Kd1 {[%emt 0:00:01]} Qb1+ {[%emt 0:00:09]} 43. Ke2 {[%emt 0:00:04]} Re8+ {[%emt 0:00:02]} 44. Kf3 {[%emt 0:00:15]} Qf1+ {[%emt 0:00:03]} 45. Kg4 {[%emt 0:00:02]} Bd6 {[%emt 0:00:25]} 46. Qd5 {[%emt 0:00:24]} Qf4+ {[%emt 0:00:13]} 47. Kh3 {[%emt 0:00:05]} Re3+ {[%emt 0:00:23]} 48. Rxe3 {[%emt 0:00:04]} Qxe3+ {[%emt 0:00:01]} 49. Kg2 {[%emt 0:00:04]} Qg3+ {[%emt 0:00:02]} 50. Kf1 {[%emt 0:00:01]} Qf4+ {[%emt 0:00:05]} 51. Ke2 {[%emt 0:00:08]} h6 {[%emt 0:00:16]} 52. Qxb7 {[%emt 0:00:14]} Qxd4 {[%emt 0:00:13]} 53. Qc8+ {[%emt 0:00:22]} Kh7 {[%emt 0:00:01]} 54. Qf5+ {[%emt 0:00:05]} Kg8 {[%emt 0:00:03]} 55. Qe6+ {[%emt 0:00:41]} Kf8 {[%emt 0:00:03]} 56. Qc8+ {[%emt 0:00:21]} Kf7 {[%emt 0:00:02]} 57. Qd7+ {[%emt 0:00:04]} Kf6 {[%emt 0:00:02]} 58. Qd8+ {[%emt 0:00:08]} Kg6 {[%emt 0:00:04]} 59. Qe8+ {[%emt 0:00:08]} Kg5 {[%emt 0:00:01]} 60. Qd8+ {[%emt 0:00:08]} Kh5 {[%emt 0:00:01]} 61. Qe8+ {[%emt 0:00:27]} g6 {[%emt 0:00:01]} 62. Kf3 {[%emt 0:00:07]} Qf4+ {[%emt 0:00:11]} 63. Kg2 {[%emt 0:00:02]} Qg3+ {[%emt 0:00:01]} 64. Kf1 {[%emt 0:00:01]} Qf3+ {[%emt 0:00:04]} 65. Kg1 {[%emt 0:00:20]} Bc5+ {[%emt 0:00:02]} 66. Kh2 {[%emt 0:00:08]} Qf2+ {[%emt 0:00:13]} 67. Kh3 {[%emt 0:00:07]} Qf3+ {[%emt 0:00:22]} 68. Kh2 {[%emt 0:00:04]} Bd6+ {[%emt 0:00:04]} 69. Kg1 {[%emt 0:00:02]} Bg3 {[%emt 0:00:12]} 70. Qb5+ {[%emt 0:00:20]} g5 {[%emt 0:00:05]} 71. Qc5 {[%emt 0:00:35]} Bf4 {[%emt 0:00:25]} 72. Qc8 {[%emt 0:00:07]} Be3+ {[%emt 0:00:07]} 73. Kh2 {[%emt 0:00:02]} Qf2+ {[%emt 0:00:05]} 74. Kh3 {[%emt 0:00:04]} Qf1+ {[%emt 0:00:06]} 75. Kh2 {[%emt 0:00:15]} Bf4# {[%emt 0:00:01]} 0-1

[Event "Kupreichik Memorial Open 2018"]
[Site "Minsk"]
[Date "2018.06.21"]
[Round "3"]
[White "Stsepkina, Yauheniya"]
[Black "Kalinin, Dmitry"]
[Result "0-1"]
[ECO "E05"]
[WhiteElo "1591"]
[BlackElo "1995"]
[Annotator "NA"]
[PlyCount "113"]
[EventDate "2018.06.21"]
[EventCountry "BLR"]
[SourceTitle "playchess.com"]
[Source "ChessBase"]
[SourceQuality "1"]
[TimeControl "900+10"]

1. d4 {[%emt 0:00:00]} Nf6 {[%emt 0:00:02]} 2. c4 {[%emt 0:00:00]} e6 {[%emt 0:00:06]} 3. Nf3 {[%emt 0:00:00]} d5 {[%emt 0:00:03]} 4. g3 {[%emt 0:00:00]} Be7 {[%emt 0:00:03]} 5. Bg2 {[%emt 0:00:00]} dxc4 {[%emt 0:00:04]} 6. Qa4+ {[%emt 0:02:56]} Bd7 {[%emt 0:00:31]} 7. Qxc4 {[%emt 0:00:02]} Bc6 {[%emt 0:00:01]} 8. O-O {[%emt 0:00:05]} O-O {[%emt 0:00:16]} 9. Nc3 {[%emt 0:00:19]} a6 {[%emt 0:00:28]} 10. Ne5 {[%emt 0:01:50]} Bxg2 {[%emt 0:00:02]} 11. Kxg2 {[%emt 0:00:01]} Nbd7 {[%emt 0:01:02]} 12. e4 {[%emt 0:02:02]} Nb6 {[%emt 0:01:13]} 13. Qd3 {[%emt 0:01:17]} Nfd7 {[%emt 0:00:35]} 14. Nxd7 {[%emt 0:01:57]} Qxd7 {[%emt 0:00:13]} 15. Rd1 {[%emt 0:00:02]} Rfd8 {[%emt 0:00:45]} 16. Qe2 {[%emt 0:00:30]} Na4 {[%emt 0:00:29]} 17. Nxa4 {[%emt 0:01:13]} Qxa4 {[%emt 0:00:02]} 18. b3 {[%emt 0:00:02]} Qb5 {[%emt 0:00:30]} 19. Qc4 {[%emt 0:01:06]} Bf6 {[%emt 0:01:38]} 20. Bb2 {[%emt 0:00:43]} Rd7 {[%emt 0:00:30]} 21. e5 {[%emt 0:00:49]} Be7 {[%emt 0:00:27]} 22. a4 {[%emt 0:00:24]} Qd5+ {[%emt 0:00:04]} 23. Qxd5 {[%emt 0:00:12]} Rxd5 {[%emt 0:00:02]} 24. Rac1 {[%emt 0:00:24]} c6 {[%emt 0:00:08]} 25. Bc3 {[%emt 0:00:12]} Rad8 {[%emt 0:00:17]} 26. Rd2 {[%emt 0:00:34]} R8d7 {[%emt 0:01:02]} 27. Rcd1 {[%emt 0:00:14]} Bd8 {[%emt 0:00:02]} 28. Kf3 {[%emt 0:00:27]} f6 {[%emt 0:00:54]} 29. Ke4 {[%emt 0:01:15]} f5+ {[%emt 0:00:33]} 30. Ke3 {[%emt 0:00:15]} Bb6 {[%emt 0:00:01]} 31. f4 {[%emt 0:00:01]} Kf7 {[%emt 0:00:05]} 32. Ke2 {[%emt 0:01:04]} h6 {[%emt 0:00:11]} 33. Kf3 {[%emt 0:00:12]} Rd8 {[%emt 0:00:20]} 34. Ke2 {[%emt 0:00:07]} g5 {[%emt 0:00:04]} 35. Kf3 {[%emt 0:00:01]} g4+ {[%emt 0:00:02]} 36. Ke2 {[%emt 0:00:27]} h5 {[%emt 0:00:10]} 37. Rd3 {[%emt 0:00:09]} h4 {[%emt 0:00:17]} 38. gxh4 Kg6 {[%emt 0:00:18]} 39. h3 {[%emt 0:00:26]} Kh5 {[%emt 0:00:11]} 40. hxg4+ {[%emt 0:00:07]} fxg4 {[%emt 0:00:03]} 41. R3d2 {[%emt 0:00:14]} R5d7 {[%emt 0:00:11]} 42. Kf2 {[%emt 0:00:08]} Rg8 {[%emt 0:00:06]} 43. Kg3 {[%emt 0:00:01]} Rf7 {[%emt 0:00:14]} 44. Rf2 {[%emt 0:00:13]} Bd8 {[%emt 0:00:08]} 45. Rh1 {[%emt 0:00:01]} Bb6 {[%emt 0:00:08]} 46. Re2 {[%emt 0:00:26]} Rd7 {[%emt 0:00:09]} 47. Rd2 {[%emt 0:00:04]} Bd8 {[%emt 0:00:05]} 48. Bb4 {[%emt 0:00:13]} Rd5 {[%emt 0:00:11]} 49. Bc3 {[%emt 0:00:13]} Rg7 {[%emt 0:00:02]} 50. Rf2 {[%emt 0:00:10]} Rf7 {[%emt 0:00:02]} 51. Rff1 {[%emt 0:00:11]} c5 {[%emt 0:00:02]} 52. dxc5 {[%emt 0:00:03]} Rd3+ {[%emt 0:00:01]} 53. Kg2 {[%emt 0:00:05]} Rxc3 {[%emt 0:00:03]} 54. b4 {[%emt 0:00:16]} Rc2+ {[%emt 0:00:08]} 55. Kg3 {[%emt 0:00:08]} Rd7 {[%emt 0:00:00]} 56. Rd1 {[%emt 0:00:06]} Rxd1 {[%emt 0:00:02]} 57. a5 0-1

[Event "Kupreichik Memorial Open 2018"]
[Site "Minsk"]
[Date "2018.06.21"]
[Round "3"]
[White "Yagutian, Mariya"]
[Black "Tihonov, Jurij"]
[Result "0-1"]
[ECO "A41"]
[WhiteElo "1506"]
[BlackElo "2385"]
[Annotator "NA"]
[PlyCount "82"]
[EventDate "2018.06.21"]
[EventCountry "BLR"]
[SourceTitle "playchess.com"]
[Source "ChessBase"]
[SourceQuality "1"]
[TimeControl "900+10"]

1. d4 {[%emt 0:00:00]} d6 {[%emt 0:00:10]} 2. Nf3 {[%emt 0:00:03]} g6 {[%emt 0:00:00]} 3. e4 {[%emt 0:00:07]} Bg7 {[%emt 0:00:00]} 4. Be3 {[%emt 0:00:10]} a6 {[%emt 0:00:00]} 5. Nc3 {[%emt 0:00:12]} Nf6 {[%emt 0:00:03]} 6. Qd2 {[%emt 0:00:26]} O-O {[%emt 0:00:06]} 7. Bh6 {[%emt 0:00:03]} b5 {[%emt 0:00:02]} 8. a3 {[%emt 0:00:21]} Bb7 {[%emt 0:00:02]} 9. Bd3 {[%emt 0:00:16]} Nbd7 {[%emt 0:00:10]} 10. h4 {[%emt 0:00:49]} e5 {[%emt 0:00:02]} 11. dxe5 {[%emt 0:00:54]} Nxe5 {[%emt 0:00:14]} 12. Nxe5 {[%emt 0:00:27]} dxe5 {[%emt 0:00:02]} 13. Bxg7 {[%emt 0:00:26]} Kxg7 {[%emt 0:00:02]} 14. Qg5 {[%emt 0:00:10]} Qe7 {[%emt 0:00:05]} 15. h5 {[%emt 0:00:14]} h6 {[%emt 0:00:02]} 16. Qg3 {[%emt 0:00:29]} g5 {[%emt 0:00:03]} 17. Qh3 {[%emt 0:01:10]} c5 {[%emt 0:00:05]} 18. Qe3 {[%emt 0:01:39]} c4 {[%emt 0:00:07]} 19. Be2 {[%emt 0:00:01]} Nd7 {[%emt 0:00:05]} 20. g3 {[%emt 0:00:59]} f5 {[%emt 0:00:09]} 21. f4 {[%emt 0:02:33]} exf4 {[%emt 0:00:09]} 22. gxf4 {[%emt 0:00:09]} Qc5 {[%emt 0:00:30]} 23. Qd2 {[%emt 0:01:54]} Rad8 {[%emt 0:00:10]} 24. fxg5 {[%emt 0:00:12]} Ne5 {[%emt 0:00:03]} 25. gxh6+ {[%emt 0:00:04]} Kh8 {[%emt 0:00:06]} 26. Qg5 {[%emt 0:00:25]} Rg8 {[%emt 0:00:14]} 27. Qf6+ {[%emt 0:00:18]} Kh7 {[%emt 0:00:01]} 28. Qxf5+ {[%emt 0:00:33]} Kh8 {[%emt 0:00:02]} 29. Nd5 {[%emt 0:00:26]} Qd6 {[%emt 0:01:21]} 30. Nf6 {[%emt 0:01:01]} Qd2+ {[%emt 0:00:41]} 31. Kf1 {[%emt 0:00:02]} Qxh6 {[%emt 0:00:13]} 32. Nxg8 {[%emt 0:01:51]} Rxg8 {[%emt 0:00:12]} 33. Qxe5+ {[%emt 0:00:02]} Kh7 {[%emt 0:00:01]} 34. Rd1 {[%emt 0:00:30]} Rf8+ {[%emt 0:00:04]} 35. Ke1 {[%emt 0:00:02]} Bc8 {[%emt 0:00:14]} 36. Qe7+ {[%emt 0:00:11]} Kh8 {[%emt 0:00:06]} 37. Rd8 {[%emt 0:00:09]} Qc1+ {[%emt 0:00:02]} 38. Rd1 {[%emt 0:00:08]} Qf4 {[%emt 0:00:04]} 39. Qh4 {[%emt 0:00:32]} Qe3 {[%emt 0:00:31]} 40. Rh3 {[%emt 0:00:50]} Bxh3 {[%emt 0:00:11]} 41. Qe7 {[%emt 0:00:34]} Rf1# {[%emt 0:00:03]} 0-1

[Event "Kupreichik Memorial Open 2018"]
[Site "Minsk"]
[Date "2018.06.21"]
[Round "3"]
[White "Kasperovich, Mikhail"]
[Black "Sadovnikov, Konstantin"]
[Result "0-1"]
[ECO "A56"]
[WhiteElo "1216"]
[BlackElo "1908"]
[Annotator "NA"]
[PlyCount "162"]
[EventDate "2018.06.21"]
[EventCountry "BLR"]
[SourceTitle "playchess.com"]
[Source "ChessBase"]
[SourceQuality "1"]
[TimeControl "900+10"]

1. d4 {[%emt 0:00:00]} Nf6 {[%emt 0:00:01]} 2. c4 {[%emt 0:00:00]} c5 {[%emt 0:00:01]} 3. Nf3 {[%emt 0:00:00]} cxd4 {[%emt 0:00:01]} 4. Nxd4 {[%emt 0:00:00]} e5 {[%emt 0:00:01]} 5. Nf3 {[%emt 0:00:04]} Nc6 {[%emt 0:00:06]} 6. Nc3 {[%emt 0:00:05]} Bb4 {[%emt 0:00:01]} 7. Bd2 {[%emt 0:00:04]} Bxc3 {[%emt 0:01:32]} 8. Bxc3 {[%emt 0:00:03]} Ne4 {[%emt 0:00:11]} 9. Qc2 {[%emt 0:00:07]} Nxc3 {[%emt 0:00:20]} 10. Qxc3 {[%emt 0:00:03]} Qe7 {[%emt 0:00:22]} 11. e3 {[%emt 0:00:07]} O-O {[%emt 0:00:03]} 12. Be2 {[%emt 0:00:03]} Rd8 {[%emt 0:00:54]} 13. Rd1 {[%emt 0:00:13]} d6 {[%emt 0:00:17]} 14. O-O {[%emt 0:00:06]} Be6 {[%emt 0:00:02]} 15. Rd2 {[%emt 0:00:17]} Rd7 {[%emt 0:00:15]} 16. Rfd1 {[%emt 0:00:02]} Rad8 {[%emt 0:00:01]} 17. e4 {[%emt 0:00:32]} f6 {[%emt 0:00:18]} 18. b3 {[%emt 0:00:28]} Kh8 {[%emt 0:01:54]} 19. Nh4 {[%emt 0:00:46]} Nd4 {[%emt 0:00:08]} 20. Qg3 {[%emt 0:00:39]} a6 {[%emt 0:00:31]} 21. Bg4 {[%emt 0:00:11]} b5 {[%emt 0:01:04]} 22. cxb5 {[%emt 0:00:07]} axb5 {[%emt 0:00:01]} 23. Qh3 {[%emt 0:00:22]} Kg8 {[%emt 0:01:14]} 24. Bxe6+ {[%emt 0:00:20]} Qxe6 {[%emt 0:00:40]} 25. Qxe6+ {[%emt 0:00:02]} Nxe6 {[%emt 0:00:01]} 26. Nf5 g6 {[%emt 0:01:06]} 27. Ne3 {[%emt 0:02:01]} Nd4 {[%emt 0:00:02]} 28. Nd5 {[%emt 0:00:28]} Kf7 {[%emt 0:00:02]} 29. Nc3 {[%emt 0:00:08]} Rc8 {[%emt 0:00:31]} 30. Ne2 {[%emt 0:00:13]} Nxe2+ {[%emt 0:00:14]} 31. Rxe2 {[%emt 0:00:02]} Ke6 {[%emt 0:00:00]} 32. Red2 {[%emt 0:00:05]} Rc6 {[%emt 0:00:05]} 33. Rd5 {[%emt 0:00:07]} Rb6 {[%emt 0:02:32]} 34. b4 {[%emt 0:00:11]} Ra7 {[%emt 0:00:07]} 35. R1d2 {[%emt 0:00:06]} Ra4 {[%emt 0:00:04]} 36. Rb2 {[%emt 0:00:05]} Rc6 {[%emt 0:00:22]} 37. Kf1 {[%emt 0:00:01]} Rc4 {[%emt 0:00:09]} 38. Rxb5 {[%emt 0:00:02]} Rxe4 {[%emt 0:00:00]} 39. Rb7 {[%emt 0:00:11]} d5 {[%emt 0:03:04]} 40. b5 {[%emt 0:00:12]} Kf5 {[%emt 0:01:41]} 41. b6 {[%emt 0:00:09]} Rab4 {[%emt 0:00:21]} 42. Rxb4 {[%emt 0:00:15]} Rxb4 {[%emt 0:00:01]} 43. Rb8 {[%emt 0:00:21]} Rb1+ {[%emt 0:00:13]} 44. Ke2 {[%emt 0:00:04]} Rb2+ {[%emt 0:00:03]} 45. Kd3 {[%emt 0:00:07]} Rxa2 {[%emt 0:00:01]} 46. b7 {[%emt 0:00:10]} Rb2 {[%emt 0:00:01]} 47. Kc3 {[%emt 0:00:01]} Rb6 {[%emt 0:00:04]} 48. f3 {[%emt 0:00:06]} h5 {[%emt 0:00:09]} 49. Kd3 {[%emt 0:00:08]} g5 {[%emt 0:00:15]} 50. g3 {[%emt 0:00:06]} g4 {[%emt 0:00:08]} 51. fxg4+ {[%emt 0:00:09]} hxg4 {[%emt 0:00:01]} 52. Kc3 {[%emt 0:00:13]} Ke4 {[%emt 0:00:02]} 53. Rg8 {[%emt 0:00:10]} Rxb7 {[%emt 0:00:05]} 54. Rxg4+ {[%emt 0:00:02]} Kf5 {[%emt 0:00:00]} 55. Rh4 {[%emt 0:00:05]} d4+ {[%emt 0:00:44]} 56. Kc4 {[%emt 0:00:19]} Ke6 {[%emt 0:00:09]} 57. Re4 {[%emt 0:00:18]} Rc7+ {[%emt 0:00:01]} 58. Kd3 {[%emt 0:00:03]} Rc3+ {[%emt 0:00:01]} 59. Kd2 {[%emt 0:00:02]} Kd5 {[%emt 0:00:01]} 60. Re1 {[%emt 0:00:09]} Ra3 {[%emt 0:00:02]} 61. h4 {[%emt 0:00:06]} Rxg3 {[%emt 0:00:02]} 62. Rh1 {[%emt 0:00:03]} e4 {[%emt 0:00:01]} 63. h5 {[%emt 0:00:01]} Rg2+ {[%emt 0:00:35]} 64. Kd1 {[%emt 0:00:04]} f5 {[%emt 0:00:50]} 65. h6 {[%emt 0:00:02]} Rg8 {[%emt 0:00:02]} 66. h7 {[%emt 0:00:01]} Rh8 {[%emt 0:00:00]} 67. Rh5 {[%emt 0:00:10]} Ke5 {[%emt 0:00:01]} 68. Rh4 {[%emt 0:00:04]} d3 {[%emt 0:00:19]} 69. Kd2 {[%emt 0:00:03]} Kf6 {[%emt 0:00:52]} 70. Ke3 {[%emt 0:00:16]} Kg6 {[%emt 0:00:05]} 71. Rh2 {[%emt 0:00:20]} Rxh7 {[%emt 0:00:03]} 72. Rg2+ {[%emt 0:00:02]} Kf6 {[%emt 0:00:01]} 73. Kf4 {[%emt 0:00:05]} Rh4+ {[%emt 0:00:02]} 74. Ke3 {[%emt 0:00:02]} Ke5 {[%emt 0:00:01]} 75. Rg5 {[%emt 0:00:01]} Rh3+ {[%emt 0:00:01]} 76. Kd2 {[%emt 0:00:02]} Kf4 {[%emt 0:00:03]} 77. Rg1 {[%emt 0:00:02]} Rh2+ {[%emt 0:00:01]} 78. Kd1 {[%emt 0:00:01]} e3 {[%emt 0:00:02]} 79. Rf1+ {[%emt 0:00:03]} Ke4 {[%emt 0:00:01]} 80. Rg1 {[%emt 0:00:03]} Ra2 {[%emt 0:00:06]} 81. Rg8 {[%emt 0:00:06]} Ra1# {[%emt 0:00:02]} 0-1

[Event "Kupreichik Memorial Open 2018"]
[Site "Minsk"]
[Date "2018.06.21"]
[Round "4"]
[White "Tihonov, Jurij"]
[Black "Girshgorn, Maria"]
[Result "1/2-1/2"]
[ECO "A48"]
[WhiteElo "2385"]
[BlackElo "1805"]
[Annotator "NA"]
[PlyCount "108"]
[EventDate "2018.06.21"]
[EventCountry "BLR"]
[SourceTitle "playchess.com"]
[Source "ChessBase"]
[SourceQuality "1"]
[TimeControl "900+10"]

1. d4 {[%emt 0:00:00]} Nf6 {[%emt 0:00:02]} 2. Nf3 {[%emt 0:00:00]} g6 {[%emt 0:00:04]} 3. Bg5 {[%emt 0:00:00]} Bg7 {[%emt 0:00:02]} 4. e3 {[%emt 0:00:00]} d6 {[%emt 0:00:02]} 5. Be2 {[%emt 0:00:06]} O-O {[%emt 0:00:02]} 6. O-O {[%emt 0:00:01]} Nbd7 {[%emt 0:00:04]} 7. c4 {[%emt 0:00:04]} e5 {[%emt 0:00:08]} 8. Nc3 {[%emt 0:00:01]} c6 {[%emt 0:00:09]} 9. Qc2 {[%emt 0:00:01]} Qc7 {[%emt 0:00:09]} 10. Rfd1 {[%emt 0:00:03]} exd4 {[%emt 0:03:14]} 11. Nxd4 {[%emt 0:00:02]} Nc5 {[%emt 0:00:10]} 12. Rd2 {[%emt 0:00:17]} Bd7 {[%emt 0:01:19]} 13. Rad1 {[%emt 0:00:02]} Rad8 {[%emt 0:00:02]} 14. Bf4 {[%emt 0:00:04]} Bg4 {[%emt 0:00:26]} 15. f3 {[%emt 0:00:04]} Bc8 {[%emt 0:00:28]} 16. b4 {[%emt 0:00:01]} Na6 {[%emt 0:00:02]} 17. a3 {[%emt 0:00:00]} Nh5 {[%emt 0:00:09]} 18. Bg5 {[%emt 0:00:05]} Rde8 {[%emt 0:01:03]} 19. e4 {[%emt 0:00:19]} h6 {[%emt 0:00:21]} 20. Bh4 {[%emt 0:00:02]} Nf4 {[%emt 0:00:08]} 21. Bf1 {[%emt 0:00:02]} d5 {[%emt 0:00:47]} 22. exd5 {[%emt 0:00:23]} cxd5 {[%emt 0:00:02]} 23. Ndb5 {[%emt 0:00:09]} Qb6+ {[%emt 0:02:59]} 24. Bf2 {[%emt 0:00:20]} Qf6 {[%emt 0:00:12]} 25. cxd5 {[%emt 0:00:15]} Bf5 {[%emt 0:00:08]} 26. Qb3 {[%emt 0:00:02]} Qg5 {[%emt 0:00:12]} 27. Kh1 {[%emt 0:00:10]} h5 {[%emt 0:00:47]} 28. d6 {[%emt 0:00:03]} h4 {[%emt 0:00:18]} 29. d7 {[%emt 0:00:07]} Rd8 {[%emt 0:00:01]} 30. Ne4 {[%emt 0:00:05]} Bxe4 {[%emt 0:00:05]} 31. fxe4 {[%emt 0:00:01]} h3 {[%emt 0:00:11]} 32. g3 {[%emt 0:00:01]} Ng2 {[%emt 0:00:19]} 33. Qf3 {[%emt 0:00:38]} f5 {[%emt 0:00:31]} 34. Bxg2 {[%emt 0:00:29]} hxg2+ {[%emt 0:00:56]} 35. Kxg2 {[%emt 0:00:01]} fxe4 {[%emt 0:00:03]} 36. Qb3+ {[%emt 0:00:11]} Kh7 {[%emt 0:00:10]} 37. Nd6 {[%emt 0:00:06]} Qg4 {[%emt 0:01:07]} 38. Nxb7 {[%emt 0:00:08]} Rf3 {[%emt 0:00:40]} 39. Qc4 {[%emt 0:00:22]} Rxd7 {[%emt 0:00:41]} 40. Rxd7 {[%emt 0:00:06]} Rxf2+ {[%emt 0:00:06]} 41. Kg1 {[%emt 0:00:22]} Qf3 {[%emt 0:00:39]} 42. Rxg7+ {[%emt 0:00:04]} Kxg7 {[%emt 0:00:06]} 43. Qd4+ {[%emt 0:00:09]} Kh7 {[%emt 0:00:16]} 44. Qxf2 {[%emt 0:00:03]} Qxd1+ {[%emt 0:00:02]} 45. Kg2 {[%emt 0:00:01]} Qd5 {[%emt 0:00:04]} 46. Nc5 {[%emt 0:00:10]} e3+ {[%emt 0:01:42]} 47. Qf3 {[%emt 0:00:01]} Qd2+ {[%emt 0:00:29]} 48. Kh3 {[%emt 0:00:07]} Nxc5 {[%emt 0:00:03]} 49. Qf7+ {[%emt 0:00:11]} Kh6 {[%emt 0:00:09]} 50. Qf4+ {[%emt 0:00:06]} Kh7 {[%emt 0:00:06]} 51. bxc5 {[%emt 0:00:02]} Qd7+ {[%emt 0:00:16]} 52. g4 {[%emt 0:00:16]} e2 {[%emt 0:00:08]} 53. Qe5 {[%emt 0:00:26]} Qd1 {[%emt 0:00:26]} 54. Qe7+ {[%emt 0:00:05]} Kg8 {[%emt 0:00:05]} 1/2-1/2

[Event "Kupreichik Memorial Open 2018"]
[Site "Minsk"]
[Date "2018.06.21"]
[Round "4"]
[White "Barskij, Vladimir"]
[Black "Ilyuchyk, Yana"]
[Result "1-0"]
[ECO "B21"]
[WhiteElo "2352"]
[BlackElo "1971"]
[Annotator "NA"]
[PlyCount "87"]
[EventDate "2018.06.21"]
[EventCountry "BLR"]
[SourceTitle "playchess.com"]
[Source "ChessBase"]
[SourceQuality "1"]
[TimeControl "900+10"]

1. e4 {[%emt 0:00:00]} c5 {[%emt 0:00:01]} 2. f4 {[%emt 0:00:00]} Nc6 {[%emt 0:00:03]} 3. Nf3 {[%emt 0:00:04]} g6 {[%emt 0:00:07]} 4. Bb5 {[%emt 0:00:06]} Bg7 {[%emt 0:00:04]} 5. Bxc6 {[%emt 0:00:04]} dxc6 {[%emt 0:00:08]} 6. d3 {[%emt 0:00:35]} Nf6 {[%emt 0:00:26]} 7. O-O {[%emt 0:00:10]} Bg4 {[%emt 0:00:16]} 8. Nbd2 {[%emt 0:00:09]} O-O {[%emt 0:00:07]} 9. Qe1 {[%emt 0:01:21]} Bxf3 {[%emt 0:01:06]} 10. Nxf3 {[%emt 0:00:02]} Qb6 {[%emt 0:01:44]} 11. Kh1 {[%emt 0:00:22]} Qc7 {[%emt 0:00:43]} 12. Rb1 {[%emt 0:00:35]} Rad8 {[%emt 0:00:41]} 13. b3 {[%emt 0:00:43]} Nh5 {[%emt 0:00:46]} 14. Qh4 {[%emt 0:00:30]} Bf6 {[%emt 0:01:01]} 15. Qg4 {[%emt 0:00:15]} Bg7 {[%emt 0:03:00]} 16. f5 {[%emt 0:00:56]} Qd7 {[%emt 0:01:35]} 17. Qh4 {[%emt 0:01:32]} Bf6 {[%emt 0:00:19]} 18. Bg5 {[%emt 0:02:52]} Bxg5 {[%emt 0:00:44]} 19. Nxg5 {[%emt 0:00:04]} h6 {[%emt 0:02:48]} 20. Nf3 {[%emt 0:04:26]} Kg7 {[%emt 0:00:20]} 21. e5 {[%emt 0:00:32]} Qxf5 {[%emt 0:00:51]} 22. g4 {[%emt 0:00:13]} Qf4 {[%emt 0:00:09]} 23. gxh5 {[%emt 0:00:03]} Qxh4 {[%emt 0:00:22]} 24. Nxh4 {[%emt 0:00:02]} Rd4 {[%emt 0:00:23]} 25. Nf3 {[%emt 0:00:05]} Rf4 {[%emt 0:00:02]} 26. hxg6 {[%emt 0:00:12]} fxg6 {[%emt 0:00:01]} 27. Nd2 {[%emt 0:00:04]} Rf2 {[%emt 0:00:03]} 28. Rxf2 {[%emt 0:00:10]} Rxf2 {[%emt 0:00:01]} 29. Rd1 {[%emt 0:00:08]} Re2 {[%emt 0:00:02]} 30. Kg1 {[%emt 0:00:15]} b6 {[%emt 0:00:18]} 31. a4 {[%emt 0:00:07]} g5 {[%emt 0:00:28]} 32. c3 {[%emt 0:00:14]} Rxe5 {[%emt 0:00:06]} 33. Ne4 {[%emt 0:00:04]} Kg6 {[%emt 0:00:10]} 34. Kg2 {[%emt 0:00:07]} h5 {[%emt 0:00:04]} 35. Kf3 {[%emt 0:00:14]} g4+ {[%emt 0:00:01]} 36. Ke2 {[%emt 0:00:10]} h4 {[%emt 0:00:05]} 37. Rf1 {[%emt 0:00:07]} b5 {[%emt 0:00:19]} 38. c4 {[%emt 0:00:07]} bxc4 {[%emt 0:00:20]} 39. bxc4 {[%emt 0:00:03]} h3 {[%emt 0:00:11]} 40. Rf8 {[%emt 0:01:10]} a5 {[%emt 0:00:27]} 41. Ke3 {[%emt 0:00:06]} Rf5 {[%emt 0:00:38]} 42. Rg8+ {[%emt 0:00:15]} Kf7 {[%emt 0:00:05]} 43. Rxg4 {[%emt 0:00:03]} Rf1 {[%emt 0:00:04]} 44. Rf4+ {[%emt 0:00:02]} 1-0